[Event "CAMPEONATO NACIONAL ABSOLUTO DE CHILE 2019"]
[Site "Torre ENTEL, Chile"]
[Date "2019.02.24"]
[Round "6.5"]
[White "Torres Bravo, Cristobal"]
[Black "Olivares Olivares, Claudio"]
[Result "1-0"]
[TimeControl "90 minutos mas 30 segundos incremento por movida"]
[WhiteTitle "FM"]
[BlackTitle "FM"]
[WhiteFideId "3405940"]
[BlackFideId "3400786"]
[WhiteElo "2347"]
[BlackElo "2387"]

1. d4 {[%clk 01:28:55]} {[%emt 00:02:05]} Nf6 {[%clk 01:28:28]} {[%emt
00:02:31]} 2. Nf3 {[%clk 01:29:08]} {[%emt 00:00:17]} g6 {[%clk 01:28:54]}
{[%emt 00:00:04]} 3. g3 {[%clk 01:29:34]} {[%emt 00:00:05]} Bg7 {[%clk
01:29:18]} {[%emt 00:00:05]} 4. Bg2 {[%clk 01:30:00]} {[%emt 00:00:04]} O-O
{[%clk 01:29:41]} {[%emt 00:00:07]} 5. O-O {[%clk 01:30:28]} {[%emt 00:00:03]}
d6 {[%clk 01:30:06]} {[%emt 00:00:04]} 6. c4 {[%clk 01:30:39]} {[%emt
00:00:20]} Nbd7 {[%clk 01:30:30]} {[%emt 00:00:06]} 7. Nc3 {[%clk 01:30:57]}
{[%emt 00:00:11]} e5 {[%clk 01:30:44]} {[%emt 00:00:16]} 8. e3 {[%clk
01:31:23]} {[%emt 00:00:04]} c6 {[%clk 01:28:34]} {[%emt 00:02:39]} 9. Qc2
{[%clk 01:30:13]} {[%emt 00:01:41]} exd4 {[%clk 01:26:18]} {[%emt 00:02:45]} 10.
Nxd4 {[%clk 01:30:03]} {[%emt 00:00:40]} a5 {[%clk 01:25:28]} {[%emt 00:01:20]}
11. b3 {[%clk 01:28:09]} {[%emt 00:02:25]} Nc5 {[%clk 01:25:39]} {[%emt
00:00:19]} 12. Bb2 {[%clk 01:24:30]} {[%emt 00:04:10]} h5 {[%clk 01:23:34]}
{[%emt 00:02:34]} 13. Rab1 {[%clk 01:13:58]} {[%emt 00:11:03]} h4 {[%clk
01:21:59]} {[%emt 00:02:05]} 14. a3 {[%clk 01:13:48]} {[%emt 00:00:41]} Re8
{[%clk 01:21:01]} {[%emt 00:01:26]} 15. b4 {[%clk 01:01:47]} {[%emt 00:12:31]}
axb4 {[%clk 01:21:26]} {[%emt 00:00:06]} 16. axb4 {[%clk 01:02:13]} {[%emt
00:00:04]} Ne6 {[%clk 01:21:16]} {[%emt 00:00:39]} 17. Nf3 {[%clk 01:01:26]}
{[%emt 00:01:17]} hxg3 {[%clk 01:21:12]} {[%emt 00:00:34]} 18. hxg3 {[%clk
01:01:52]} {[%emt 00:00:05]} Qb6 {[%clk 01:14:47]} {[%emt 00:06:54]} 19. b5
{[%clk 00:57:59]} {[%emt 00:04:24]} Qc7 {[%clk 01:13:07]} {[%emt 00:02:10]} 20.
Ra1 {[%clk 00:53:38]} {[%emt 00:04:52]} Bd7 {[%clk 01:13:18]} {[%emt 00:00:18]}
21. Qe2 {[%clk 00:43:39]} {[%emt 00:10:29]} Nc5 {[%clk 01:11:46]} {[%emt
00:02:02]} 22. Nd4 {[%clk 00:42:19]} {[%emt 00:01:50]} Rxa1 {[%clk 01:08:15]}
{[%emt 00:04:01]} 23. Rxa1 {[%clk 00:42:07]} {[%emt 00:00:43]} Ng4 {[%clk
01:06:41]} {[%emt 00:02:04]} 24. Na4 {[%clk 00:31:56]} {[%emt 00:10:40]} Bxd4
{[%clk 00:51:41]} {[%emt 00:15:29]} 25. Bxd4 {[%clk 00:31:46]} {[%emt
00:00:41]} cxb5 {[%clk 00:49:51]} {[%emt 00:02:20]} 26. cxb5 {[%clk 00:30:22]}
{[%emt 00:01:53]} Nxa4 {[%clk 00:48:31]} {[%emt 00:01:50]} 27. Rxa4 {[%clk
00:29:44]} {[%emt 00:01:08]} Qc1+ {[%clk 00:48:55]} {[%emt 00:00:06]} 28. Bf1
{[%clk 00:28:12]} {[%emt 00:02:02]} Ne5 {[%clk 00:47:59]} {[%emt 00:01:25]} 29.
Ra1 {[%clk 00:27:30]} {[%emt 00:01:13]} Qc8 {[%clk 00:45:16]} {[%emt 00:03:13]}
30. Bg2 {[%clk 00:26:37]} {[%emt 00:01:23]} Bh3 {[%clk 00:44:11]} {[%emt
00:01:34]} 31. f4 {[%clk 00:22:12]} {[%emt 00:04:56]} Bxg2 {[%clk 00:42:04]}
{[%emt 00:02:37]} 32. Kxg2 {[%clk 00:20:35]} {[%emt 00:02:07]} Nc4 {[%clk
00:40:24]} {[%emt 00:02:10]} 33. Rh1 {[%clk 00:18:48]} {[%emt 00:02:16]} f6
{[%clk 00:40:39]} {[%emt 00:00:15]} 34. f5 {[%clk 00:15:18]} {[%emt 00:04:01]}
d5 {[%clk 00:37:28]} {[%emt 00:03:40]} 35. fxg6 {[%clk 00:13:08]} {[%emt
00:02:41]} Qf5 {[%clk 00:37:15]} {[%emt 00:00:43]} 36. Rf1 {[%clk 00:08:38]}
{[%emt 00:05:00]} Qxg6 {[%clk 00:32:22]} {[%emt 00:05:23]} 37. Rxf6 {[%clk
00:08:36]} {[%emt 00:00:32]} Qg5 {[%clk 00:31:52]} {[%emt 00:01:00]} 38. Qf3
{[%clk 00:07:12]} {[%emt 00:01:55]} Nd2 {[%clk 00:27:38]} {[%emt 00:04:44]} 39.
Qf5 {[%clk 00:06:53]} {[%emt 00:00:49]} Qxf5 {[%clk 00:27:30]} {[%emt
00:00:38]} 40. Rxf5 {[%clk 00:07:19]} {[%emt 00:00:05]} Rd8 {[%clk 00:27:47]}
{[%emt 00:00:13]} 41. Rg5+ {[%clk 00:07:17]} {[%emt 00:00:32]} Kf8 {[%clk
00:28:01]} {[%emt 00:00:15]} 42. Rg7 {[%clk 00:07:03]} {[%emt 00:00:44]} b6
{[%clk 00:27:09]} {[%emt 00:01:23]} 43. Rb7 {[%clk 00:07:03]} {[%emt 00:00:30]}
Nc4 {[%clk 00:26:45]} {[%emt 00:00:54]} 44. Bxb6 {[%clk 00:07:10]} {[%emt
00:00:22]} Ra8 {[%clk 00:26:47]} {[%emt 00:00:28]} 45. Bc5+ {[%clk 00:07:31]}
{[%emt 00:00:10]} Ke8 {[%clk 00:27:13]} {[%emt 00:00:04]} 46. b6 {[%clk
00:06:52]} {[%emt 00:01:11]} Ra5 {[%clk 00:27:12]} {[%emt 00:00:29]} 47. Rc7
{[%clk 00:06:18]} {[%emt 00:01:04]} Kd8 {[%clk 00:21:08]} {[%emt 00:06:33]} 48.
Be7+ {[%clk 00:06:18]} {[%emt 00:00:30]} Ke8 {[%clk 00:21:33]} {[%emt
00:00:05]} 49. b7 {[%clk 00:06:34]} {[%emt 00:00:15]} Rb5 {[%clk 00:21:57]}
{[%emt 00:00:05]} 50. Bc5 {[%clk 00:06:49]} {[%emt 00:00:15]} 1-0

[Event "CAMPEONATO NACIONAL ABSOLUTO DE CHILE 2019"]
[Site "Torre ENTEL, Chile"]
[Date "2019.02.24"]
[Round "6.6"]
[White "Vergara Jofre, Felipe"]
[Black "Garcia Cardenas, Pablo"]
[Result "1-0"]
[TimeControl "90 minutos mas 30 segundos incremento por movida"]
[WhiteTitle "FM"]
[BlackTitle "IM"]
[WhiteFideId "3416291"]
[BlackFideId "3406903"]
[WhiteElo "2265"]
[BlackElo "2449"]

1. e4 {[%clk 01:28:50]} {[%emt 00:02:10]} e5 {[%clk 01:30:55]} {[%emt
00:00:05]} 2. Nf3 {[%clk 01:29:13]} {[%emt 00:00:07]} Nc6 {[%clk 01:31:21]}
{[%emt 00:00:05]} 3. Bc4 {[%clk 01:29:35]} {[%emt 00:00:08]} Bc5 {[%clk
01:31:45]} {[%emt 00:00:06]} 4. O-O {[%clk 01:29:59]} {[%emt 00:00:06]} Nf6
{[%clk 01:32:12]} {[%emt 00:00:04]} 5. d3 {[%clk 01:30:25]} {[%emt 00:00:05]}
d6 {[%clk 01:32:23]} {[%emt 00:00:18]} 6. c3 {[%clk 01:30:14]} {[%emt
00:00:41]} h6 {[%clk 01:32:44]} {[%emt 00:00:10]} 7. Nbd2 {[%clk 01:28:04]}
{[%emt 00:02:40]} O-O {[%clk 01:30:56]} {[%emt 00:02:18]} 8. Re1 {[%clk
01:25:15]} {[%emt 00:03:19]} a5 {[%clk 01:31:06]} {[%emt 00:00:19]} 9. a4
{[%clk 01:20:26]} {[%emt 00:05:19]} Ne7 {[%clk 01:27:16]} {[%emt 00:04:19]} 10.
d4 {[%clk 01:05:52]} {[%emt 00:15:04]} exd4 {[%clk 01:27:38]} {[%emt 00:00:08]}
11. Nxd4 {[%clk 01:06:02]} {[%emt 00:00:20]} d5 {[%clk 01:13:49]} {[%emt
00:14:19]} 12. e5 {[%clk 00:57:35]} {[%emt 00:08:58]} Ng4 {[%clk 00:55:55]}
{[%emt 00:18:24]} 13. Bd3 {[%clk 00:53:16]} {[%emt 00:04:48]} Nc6 {[%clk
00:55:00]} {[%emt 00:01:24]} 14. N2f3 {[%clk 00:49:27]} {[%emt 00:04:20]} f6
{[%clk 00:54:13]} {[%emt 00:01:18]} 15. e6 {[%clk 00:40:48]} {[%emt 00:09:10]}
Nge5 {[%clk 00:52:18]} {[%emt 00:02:24]} 16. Nxc6 {[%clk 00:24:18]} {[%emt
00:17:01]} bxc6 {[%clk 00:48:04]} {[%emt 00:04:44]} 17. Bf5 {[%clk 00:24:44]}
{[%emt 00:00:04]} Qe8 {[%clk 00:36:49]} {[%emt 00:11:45]} 18. Nd4 {[%clk
00:20:30]} {[%emt 00:04:45]} Bb6 {[%clk 00:34:09]} {[%emt 00:03:09]} 19. f4
{[%clk 00:17:34]} {[%emt 00:03:26]} Bxe6 {[%emt 00:10:34]} 20. Bxe6+ {[%clk
00:12:49]} {[%emt 00:05:13]} Qxe6 {[%clk 00:24:36]} {[%emt 00:00:01]} 21. Be3
{[%clk 00:13:18]} Qf7 {[%clk 00:23:02]} {[%emt 00:02:04]} 22. fxe5 {[%clk
00:09:32]} {[%emt 00:04:16]} fxe5 {[%clk 00:23:31]} {[%emt 00:00:01]} 23. Nc2
{[%clk 00:07:07]} {[%emt 00:02:55]} d4 {[%clk 00:17:55]} {[%emt 00:06:06]} 24.
cxd4 {[%clk 00:03:33]} {[%emt 00:04:05]} exd4 {[%clk 00:18:23]} {[%emt
00:00:02]} 25. Nxd4 {[%clk 00:03:08]} {[%emt 00:00:55]} Rad8 {[%clk 00:17:05]}
{[%emt 00:01:48]} 26. Qg4 {[%clk 00:02:28]} {[%emt 00:01:09]} Qf6 {[%clk
00:14:59]} {[%emt 00:02:36]} 27. Qe6+ {[%clk 00:02:08]} {[%emt 00:00:51]} Kh8
{[%clk 00:13:28]} {[%emt 00:02:02]} 28. Qxf6 {[%clk 00:02:29]} {[%emt
00:00:09]} Rxf6 {[%clk 00:13:56]} 29. Nf3 {[%clk 00:02:33]} {[%emt 00:00:26]}
Rb8 {[%clk 00:14:15]} {[%emt 00:00:11]} 30. Bxb6 {[%clk 00:01:15]} {[%emt
00:01:48]} cxb6 {[%clk 00:14:43]} {[%emt 00:00:02]} 31. Rad1 {[%clk 00:01:11]}
{[%emt 00:00:34]} 1-0

[ePGN "0.1;DGT LiveChess/2.2.3"]

[Event "CAMPEONATO NACIONAL ABSOLUTO DE CHILE 2019"]
[Site "Torre ENTEL, Chile"]
[Date "????.??.??"]
[Round "7.1"]
[White "Garcia Cardenas, Pablo"]
[Black "Gasic Merino, Franco"]
[Result "1-0"]
[TimeControl "90 minutos mas 30 segundos incremento por movida"]
[WhiteTitle "IM"]
[WhiteFideId "3406903"]
[BlackFideId "3414370"]
[WhiteElo "2449"]
[BlackElo "2189"]

1. e4 {[%clk 01:30:57]} {[%emt 00:00:02]} d5 {[%clk 01:30:57]} {[%emt
00:00:04]} 2. exd5 {[%clk 01:31:22]} {[%emt 00:00:05]} Nf6 {[%clk 01:31:23]}
{[%emt 00:00:04]} 3. Nf3 {[%clk 01:31:19]} {[%emt 00:00:33]} Qxd5 {[%clk
01:31:36]} {[%emt 00:00:17]} 4. d4 {[%clk 01:31:32]} {[%emt 00:00:17]} Bg4
{[%clk 01:31:32]} {[%emt 00:00:34]} 5. Be2 {[%clk 01:31:56]} {[%emt 00:00:06]}
Nc6 {[%clk 01:31:34]} {[%emt 00:00:27]} 6. c4 {[%clk 01:32:20]} {[%emt
00:00:06]} Qd7 {[%clk 01:31:32]} {[%emt 00:00:32]} 7. Be3 {[%clk 01:31:36]}
{[%emt 00:01:14]} e6 {[%clk 01:31:09]} {[%emt 00:00:54]} 8. Nbd2 {[%clk
01:32:00]} {[%emt 00:00:05]} Be7 {[%clk 01:28:30]} {[%emt 00:03:09]} 9. a3
{[%clk 01:31:59]} {[%emt 00:00:32]} a6 {[%clk 01:27:22]} {[%emt 00:01:38]} 10.
O-O {[%clk 01:32:13]} {[%emt 00:00:16]} O-O {[%clk 01:27:25]} {[%emt 00:00:27]}
11. b4 {[%clk 01:32:38]} {[%emt 00:00:05]} Rab8 {[%clk 01:23:00]} {[%emt
00:04:54]} 12. Qb3 {[%clk 01:27:17]} {[%emt 00:05:52]} b5 {[%clk 01:15:38]}
{[%emt 00:07:52]} 13. Rfc1 {[%clk 01:24:27]} {[%emt 00:03:20]} Bxf3 {[%clk
01:11:34]} {[%emt 00:04:34]} 14. Nxf3 {[%clk 01:24:34]} {[%emt 00:00:22]} Ng4
{[%clk 01:09:24]} {[%emt 00:02:40]} 15. cxb5 {[%clk 01:09:13]} {[%emt
00:15:52]} axb5 {[%clk 01:09:41]} {[%emt 00:00:14]} 16. Qc3 {[%clk 00:58:44]}
{[%emt 00:10:59]} Nxe3 {[%clk 01:06:53]} {[%emt 00:03:17]} 17. fxe3 {[%clk
00:58:52]} {[%emt 00:00:23]} Rb6 {[%clk 01:05:30]} {[%emt 00:01:53]} 18. Bxb5
{[%clk 00:56:13]} {[%emt 00:03:09]} Rxb5 {[%clk 01:05:50]} {[%emt 00:00:10]} 19.
Qxc6 {[%clk 00:56:39]} {[%emt 00:00:04]} Qxc6 {[%clk 01:05:42]} {[%emt
00:00:38]} 20. Rxc6 {[%clk 00:57:07]} {[%emt 00:00:02]} Ra8 {[%clk 01:02:27]}
{[%emt 00:03:45]} 21. Rac1 {[%clk 00:44:27]} {[%emt 00:13:10]} Rxa3 {[%clk
00:45:05]} {[%emt 00:17:52]} 22. Rxc7 {[%clk 00:44:45]} {[%emt 00:00:12]} Bxb4
{[%clk 00:45:27]} {[%emt 00:00:07]} 23. Rc8+ {[%clk 00:41:52]} {[%emt
00:03:23]} Bf8 {[%clk 00:45:55]} {[%emt 00:00:01]} 24. Ne5 {[%clk 00:38:18]}
{[%emt 00:04:04]} Rb7 {[%clk 00:43:08]} {[%emt 00:03:15]} 25. Rd8 {[%clk
00:37:58]} {[%emt 00:00:52]} Ra2 {[%clk 00:39:32]} {[%emt 00:04:05]} 26. Nd7
{[%clk 00:36:35]} {[%emt 00:01:55]} g6 {[%clk 00:39:41]} {[%emt 00:00:20]} 27.
Nxf8 {[%clk 00:36:01]} {[%emt 00:01:04]} Kg7 {[%clk 00:39:52]} {[%emt
00:00:18]} 28. Kh1 {[%clk 00:36:21]} {[%emt 00:00:11]} Raa7 {[%clk 00:29:42]}
{[%emt 00:10:40]} 29. h3 {[%clk 00:30:01]} {[%emt 00:06:50]} h5 {[%clk
00:15:58]} {[%emt 00:14:13]} 30. e4 {[%clk 00:26:15]} {[%emt 00:04:17]} g5
{[%clk 00:16:12]} {[%emt 00:00:16]} 31. d5 {[%clk 00:26:00]} {[%emt 00:00:45]}
exd5 {[%clk 00:16:33]} {[%emt 00:00:09]} 32. exd5 {[%clk 00:26:28]} {[%emt
00:00:02]} g4 {[%clk 00:16:45]} {[%emt 00:00:18]} 33. hxg4 {[%clk 00:23:41]}
{[%emt 00:03:17]} hxg4 {[%clk 00:17:00]} {[%emt 00:00:14]} 34. d6 {[%clk
00:23:06]} {[%emt 00:01:05]} Rb2 {[%clk 00:09:01]} {[%emt 00:08:29]} 35. d7
{[%clk 00:22:12]} {[%emt 00:01:25]} g3 {[%clk 00:02:02]} {[%emt 00:07:28]} 36.
Rdc8 {[%clk 00:21:22]} {[%emt 00:01:20]} Rxd7 {[%clk 00:00:48]} {[%emt
00:01:44]} 37. Nxd7 {[%clk 00:21:47]} {[%emt 00:00:05]} f5 {[%clk 00:00:34]}
{[%emt 00:00:45]} 38. Ne5 {[%clk 00:21:50]} {[%emt 00:00:26]} f4 {[%clk
00:00:33]} {[%emt 00:00:31]} 39. Nd3 {[%clk 00:22:11]} {[%emt 00:00:09]} Rd2
{[%clk 00:00:39]} {[%emt 00:00:24]} 40. Nxf4 {[%clk 00:22:35]} {[%emt
00:00:06]} Kh6 {[%clk 00:00:51]} {[%emt 00:00:18]} 41. Rg8 {[%clk 00:22:19]}
{[%emt 00:00:46]} Rf2 {[%clk 00:00:37]} {[%emt 00:00:45]} 42. Nh3 {[%clk
00:22:38]} {[%emt 00:00:11]} Re2 {[%clk 00:00:33]} {[%emt 00:00:34]} 43. Rxg3
{[%clk 00:23:02]} {[%emt 00:00:06]} Rd2 {[%clk 00:00:38]} {[%emt 00:00:25]} 44.
Kh2 {[%clk 00:23:25]} {[%emt 00:00:06]} Kh7 {[%clk 00:00:33]} {[%emt 00:00:35]}
45. Rc4 {[%clk 00:23:44]} {[%emt 00:00:11]} 1-0

[Event "CAMPEONATO NACIONAL ABSOLUTO DE CHILE 2019"]
[Site "Torre ENTEL, Chile"]
[Date "????.??.??"]
[Round "7.4"]
[White "Aguirre Contreras, Cristian"]
[Black "Henriquez Villagra, Cristobal"]
[Result "0-1"]
[TimeControl "90 minutos mas 30 segundos incremento por movida"]
[WhiteTitle "FM"]
[BlackTitle "GM"]
[WhiteFideId "3412776"]
[BlackFideId "3409350"]
[WhiteElo "2252"]
[BlackElo "2508"]

1. Nf3 {[%clk 01:30:57]} {[%emt 00:00:02]} Nf6 {[%clk 01:27:37]} {[%emt
00:03:23]} 2. d4 {[%clk 01:31:21]} {[%emt 00:00:07]} g6 {[%clk 01:28:02]}
{[%emt 00:00:05]} 3. Nc3 {[%clk 01:31:47]} {[%emt 00:00:04]} d5 {[%clk
01:28:07]} {[%emt 00:00:26]} 4. Bf4 {[%clk 01:32:11]} {[%emt 00:00:05]} Bg7
{[%clk 01:28:13]} {[%emt 00:00:24]} 5. Qd2 {[%clk 01:32:28]} {[%emt 00:00:13]}
c6 {[%clk 01:27:33]} {[%emt 00:01:09]} 6. Ne5 {[%clk 01:31:40]} {[%emt
00:01:18]} Be6 {[%clk 01:22:44]} {[%emt 00:05:20]} 7. f3 {[%clk 01:30:54]}
{[%emt 00:01:17]} Nbd7 {[%clk 01:22:42]} {[%emt 00:00:32]} 8. g4 {[%clk
01:28:41]} {[%emt 00:02:42]} Nb6 {[%clk 01:12:17]} {[%emt 00:10:55]} 9. h4
{[%clk 01:11:49]} {[%emt 00:17:21]} h5 {[%clk 01:10:09]} {[%emt 00:02:37]} 10.
g5 {[%clk 00:53:32]} {[%emt 00:18:47]} Nfd7 {[%clk 01:10:21]} {[%emt 00:00:18]}
11. e3 {[%clk 00:47:34]} {[%emt 00:06:28]} Nxe5 {[%clk 01:05:48]} {[%emt
00:05:04]} 12. Bxe5 {[%clk 00:47:10]} {[%emt 00:00:55]} Bxe5 {[%clk 01:06:07]}
{[%emt 00:00:10]} 13. dxe5 {[%clk 00:46:21]} {[%emt 00:01:19]} Qc7 {[%clk
01:06:33]} {[%emt 00:00:04]} 14. Qh2 {[%clk 00:45:10]} {[%emt 00:01:41]} Nd7
{[%clk 01:06:29]} {[%emt 00:00:34]} 15. f4 {[%clk 00:44:30]} {[%emt 00:01:10]}
Qb6 {[%clk 01:06:53]} {[%emt 00:00:06]} 16. Nd1 {[%clk 00:41:59]} {[%emt
00:03:01]} O-O-O {[%clk 01:07:18]} {[%emt 00:00:06]} 17. c3 {[%clk 00:32:51]}
{[%emt 00:09:38]} Nc5 {[%clk 01:07:30]} {[%emt 00:00:18]} 18. Be2 {[%clk
00:32:48]} {[%emt 00:00:32]} Bf5 {[%clk 01:07:06]} {[%emt 00:00:54]} 19. Rc1
{[%clk 00:27:03]} {[%emt 00:06:15]} Qa5 {[%clk 01:05:15]} {[%emt 00:02:20]} 20.
O-O {[%clk 00:23:32]} {[%emt 00:04:01]} Qxa2 {[%clk 01:04:01]} {[%emt
00:01:45]} 21. c4 {[%clk 00:22:54]} {[%emt 00:01:07]} Nb3 {[%clk 00:58:02]}
{[%emt 00:06:30]} 22. Rc3 {[%clk 00:22:44]} {[%emt 00:00:40]} Nd2 {[%clk
00:58:20]} {[%emt 00:00:12]} 23. Ra3 {[%clk 00:14:13]} {[%emt 00:09:00]} Nxf1
{[%clk 00:58:29]} {[%emt 00:00:21]} 24. Bxf1 {[%clk 00:13:54]} {[%emt
00:00:49]} Qb1 {[%clk 00:58:54]} {[%emt 00:00:05]} 25. Nc3 {[%clk 00:14:04]}
{[%emt 00:00:20]} Qe1 {[%clk 00:59:04]} {[%emt 00:00:20]} 0-1

[Event "CAMPEONATO NACIONAL ABSOLUTO DE CHILE 2019"]
[Site "Torre ENTEL, Chile"]
[Date "????.??.??"]
[Round "7.5"]
[White "Cuevas Araya, Walter"]
[Black "Salinas Herrera, Pablo"]
[Result "0-1"]
[TimeControl "90 minutos mas 30 segundos incremento por movida"]
[WhiteTitle "FM"]
[BlackTitle "IM"]
[WhiteFideId "3405028"]
[BlackFideId "3407128"]
[WhiteElo "2187"]
[BlackElo "2477"]

1. d4 {[%clk 01:30:57]} {[%emt 00:00:02]} g6 {[%clk 01:29:40]} {[%emt
00:01:20]} 2. c4 {[%clk 01:30:51]} {[%emt 00:00:37]} Bg7 {[%clk 01:29:57]}
{[%emt 00:00:12]} 3. Nf3 {[%clk 01:30:00]} {[%emt 00:01:21]} d6 {[%clk
01:30:21]} {[%emt 00:00:07]} 4. g3 {[%clk 01:29:07]} {[%emt 00:01:23]} Nf6
{[%clk 01:28:51]} {[%emt 00:01:59]} 5. Nc3 {[%clk 01:29:25]} {[%emt 00:00:12]}
O-O {[%clk 01:29:14]} {[%emt 00:00:07]} 6. Bg2 {[%clk 01:29:54]} {[%emt
00:00:02]} Nc6 {[%clk 01:29:33]} {[%emt 00:00:11]} 7. O-O {[%clk 01:29:42]}
{[%emt 00:00:41]} e5 {[%clk 01:29:56]} {[%emt 00:00:08]} 8. h3 {[%clk
01:28:59]} {[%emt 00:01:13]} Nd7 {[%clk 01:18:08]} {[%emt 00:12:18]} 9. Be3
{[%clk 01:25:32]} {[%emt 00:03:56]} Ne7 {[%clk 01:03:31]} {[%emt 00:15:08]} 10.
dxe5 {[%clk 01:15:32]} {[%emt 00:10:31]} dxe5 {[%clk 01:03:55]} {[%emt
00:00:06]} 11. Bd2 {[%clk 01:08:54]} {[%emt 00:07:08]} f5 {[%clk 00:57:09]}
{[%emt 00:07:16]} 12. Bg5 {[%clk 01:09:01]} {[%emt 00:00:22]} h6 {[%clk
00:57:07]} {[%emt 00:00:32]} 13. Bxe7 {[%clk 01:09:09]} {[%emt 00:00:22]} Qxe7
{[%clk 00:57:31]} {[%emt 00:00:05]} 14. Nd5 {[%clk 01:08:49]} {[%emt 00:00:51]}
Qd6 {[%clk 00:56:23]} {[%emt 00:01:38]} 15. Nd2 {[%clk 01:06:58]} {[%emt
00:02:20]} c6 {[%clk 00:56:24]} {[%emt 00:00:29]} 16. Nc3 {[%clk 01:01:03]}
{[%emt 00:06:26]} e4 {[%clk 00:56:01]} {[%emt 00:00:53]} 17. Nb3 {[%clk
01:00:01]} {[%emt 00:01:32]} Qe7 {[%clk 00:56:02]} {[%emt 00:00:29]} 18. e3
{[%clk 00:59:39]} {[%emt 00:00:52]} Ne5 {[%clk 00:56:23]} {[%emt 00:00:08]} 19.
Nd2 {[%clk 00:56:48]} {[%emt 00:03:22]} Be6 {[%clk 00:56:09]} {[%emt 00:00:44]}
20. Qa4 {[%clk 00:54:45]} {[%emt 00:02:33]} Rfd8 {[%clk 00:55:34]} {[%emt
00:01:05]} 21. Rfd1 {[%clk 00:55:07]} {[%emt 00:00:09]} Qf7 {[%clk 00:54:41]}
{[%emt 00:01:23]} 22. Bf1 {[%clk 00:55:24]} {[%emt 00:00:13]} Rxd2 {[%clk
00:55:06]} {[%emt 00:00:05]} 0-1